[Event "*** SCC Grand Prix: Titled Tuesday Blitz"]
[Site "Chess.com"]
[Date "2020.09.29"]
[Round "9"]
[White "Loy_Konstantin"]
[Black "blitzking1729"]
[Result "0-1"]
[WhiteElo "2385"]
[BlackElo "2548"]
[TimeControl "180+1"]
[EndTime "11:41:53 PDT"]
[Termination "blitzking1729 won by resignation"]

1. e4 {[%clk 0:03:00.9]} 1... d6 {[%clk 0:02:52.1]} 2. d4 {[%clk 0:03:00.7]}
2... Nf6 {[%clk 0:02:52]} 3. Nc3 {[%clk 0:03:00.9]} 3... e5 {[%clk 0:02:47.9]}
4. Nf3 {[%clk 0:03:00.7]} 4... exd4 {[%clk 0:02:47.2]} 5. Nxd4 {[%clk
0:03:00.4]} 5... g6 {[%clk 0:02:47.8]} 6. Be2 {[%clk 0:02:36.3]} 6... Bg7 {[%clk
0:02:46.5]} 7. O-O {[%clk 0:02:36.5]} 7... O-O {[%clk 0:02:46.9]} 8. h3 {[%clk
0:02:36]} 8... Re8 {[%clk 0:02:46.9]} 9. Bf3 {[%clk 0:02:25.1]} 9... Nbd7 {[%clk
0:02:46.1]} 10. g3 {[%clk 0:02:14.7]} 10... Nc5 {[%clk 0:02:44]} 11. Bg5 {[%clk
0:02:03]} 11... Bxh3 {[%clk 0:02:41.6]} 12. Bg2 {[%clk 0:02:01.7]} 12... Bxg2
{[%clk 0:02:41]} 13. Kxg2 {[%clk 0:02:02.6]} 13... Ncxe4 {[%clk 0:02:40]} 14.
Nxe4 {[%clk 0:02:00.7]} 14... Rxe4 {[%clk 0:02:40.9]} 15. Qd3 {[%clk 0:01:51.5]}
15... Re8 {[%clk 0:02:35.3]} 16. Rh1 {[%clk 0:01:39]} 16... Qd7 {[%clk
0:02:26.9]} 17. Nf3 {[%clk 0:01:27.2]} 17... Ng4 {[%clk 0:02:14.7]} 18. Rh4
{[%clk 0:01:10.1]} 18... Ne5 {[%clk 0:02:11.8]} 19. Nxe5 {[%clk 0:01:07]} 19...
Rxe5 {[%clk 0:02:12.7]} 20. Bf4 {[%clk 0:00:47]} 20... Qc6+ {[%clk 0:02:07.8]}
21. f3 {[%clk 0:00:45]} 21... Rd5 {[%clk 0:01:58.7]} 22. Qe4 {[%clk 0:00:41.9]}
22... Re8 {[%clk 0:01:54.5]} 23. Qb4 {[%clk 0:00:39.9]} 23... Qxc2+ {[%clk
0:01:51.1]} 24. Kh3 {[%clk 0:00:36.1]} 24... g5 {[%clk 0:01:47.9]} 25. Rc1
{[%clk 0:00:28.8]} 25... Qf5+ {[%clk 0:01:45.2]} 26. Rg4 {[%clk 0:00:26.6]}
26... h5 {[%clk 0:01:43.9]} 0-1

[Event "*** SCC Grand Prix: Titled Tuesday Blitz"]
[Site "Chess.com"]
[Date "2020.09.29"]
[Round "9"]
[White "Egorov_Pavel"]
[Black "Jadeit90"]
[Result "0-1"]
[WhiteElo "2431"]
[BlackElo "2343"]
[TimeControl "180+1"]
[EndTime "11:41:58 PDT"]
[Termination "Jadeit90 won by checkmate"]

1. d4 {[%clk 0:03:00.9]} 1... g6 {[%clk 0:02:59.5]} 2. c4 {[%clk 0:03:00.2]}
2... Bg7 {[%clk 0:02:59.9]} 3. Nc3 {[%clk 0:03:00.8]} 3... c5 {[%clk 0:03:00.3]}
4. d5 {[%clk 0:03:01.3]} 4... d6 {[%clk 0:03:00.6]} 5. e4 {[%clk 0:03:01.1]}
5... Nf6 {[%clk 0:03:01.5]} 6. Bd3 {[%clk 0:03:01.2]} 6... O-O {[%clk
0:03:02.4]} 7. Nge2 {[%clk 0:03:01.6]} 7... e6 {[%clk 0:03:03.3]} 8. O-O {[%clk
0:03:00]} 8... exd5 {[%clk 0:03:03.7]} 9. cxd5 {[%clk 0:03:00.9]} 9... Na6
{[%clk 0:03:04.5]} 10. f4 {[%clk 0:02:59]} 10... Nc7 {[%clk 0:03:04.7]} 11. a4
{[%clk 0:02:51.6]} 11... Rb8 {[%clk 0:03:04.5]} 12. Re1 {[%clk 0:02:43]} 12...
a6 {[%clk 0:03:04.8]} 13. Be3 {[%clk 0:02:28.4]} 13... b5 {[%clk 0:03:05]} 14.
axb5 {[%clk 0:02:27.7]} 14... axb5 {[%clk 0:03:05.9]} 15. e5 {[%clk 0:02:28.2]}
15... Nfxd5 {[%clk 0:03:02.3]} 16. Nxd5 {[%clk 0:02:26.7]} 16... Nxd5 {[%clk
0:03:03.2]} 17. Bf2 {[%clk 0:02:23.7]} 17... Nb4 {[%clk 0:02:47.9]} 18. Nc3
{[%clk 0:02:13.7]} 18... c4 {[%clk 0:02:33.8]} 19. Be4 {[%clk 0:02:13.7]} 19...
dxe5 {[%clk 0:02:20.6]} 20. Bc5 {[%clk 0:02:13.8]} 20... Nd3 {[%clk 0:02:17.3]}
21. Bxd3 {[%clk 0:02:09.7]} 21... cxd3 {[%clk 0:02:15.6]} 22. Bxf8 {[%clk
0:02:08.4]} 22... Bxf8 {[%clk 0:02:14.8]} 23. fxe5 {[%clk 0:02:07.1]} 23... Bb7
{[%clk 0:02:12.4]} 24. Kh1 {[%clk 0:01:50.2]} 24... Qg5 {[%clk 0:02:08.5]} 25.
Ne4 {[%clk 0:01:11.6]} 25... Qxe5 {[%clk 0:02:07.1]} 26. Ng3 {[%clk 0:00:38.3]}
26... Qd5 {[%clk 0:02:05.3]} 27. Qd2 {[%clk 0:00:33.8]} 27... Bb4 {[%clk
0:02:05]} 28. Qf2 {[%clk 0:00:27.1]} 28... Bxe1 {[%clk 0:02:02.9]} 29. Rxe1
{[%clk 0:00:28]} 29... d2 {[%clk 0:01:59.1]} 30. Rd1 {[%clk 0:00:26.8]} 30...
Re8 {[%clk 0:01:58.4]} 31. Rxd2 {[%clk 0:00:25.3]} 31... Qxg2+ {[%clk
0:01:50.9]} 32. Qxg2 {[%clk 0:00:22]} 32... Re1+ {[%clk 0:01:48.6]} 33. Nf1
{[%clk 0:00:20.7]} 33... Rxf1# {[%clk 0:01:48.9]} 0-1

[Event "*** SCC Grand Prix: Titled Tuesday Blitz"]
[Site "Chess.com"]
[Date "2020.09.29"]
[Round "9"]
[White "shriyanasmallya"]
[Black "Larina_Marija"]
[Result "1-0"]
[WhiteElo "1627"]
[BlackElo "2172"]
[TimeControl "180+1"]
[EndTime "11:42:17 PDT"]
[Termination "shriyanasmallya won by checkmate"]

1. e4 {[%clk 0:03:00.9]} 1... c6 {[%clk 0:02:59.8]} 2. d4 {[%clk 0:02:59.9]}
2... d5 {[%clk 0:03:00.2]} 3. e5 {[%clk 0:02:59.2]} 3... c5 {[%clk 0:03:00.4]}
4. c3 {[%clk 0:02:58.7]} 4... Nc6 {[%clk 0:02:57]} 5. Nf3 {[%clk 0:02:58.1]}
5... Bg4 {[%clk 0:02:56.1]} 6. Be2 {[%clk 0:02:55.2]} 6... e6 {[%clk 0:02:55.6]}
7. Be3 {[%clk 0:02:54.5]} 7... Qb6 {[%clk 0:02:53.3]} 8. Qd2 {[%clk 0:02:51.6]}
8... Bxf3 {[%clk 0:02:46.9]} 9. Bxf3 {[%clk 0:02:50.7]} 9... h5 {[%clk
0:02:40.8]} 10. Na3 {[%clk 0:02:45.3]} 10... Nh6 {[%clk 0:02:40]} 11. O-O-O
{[%clk 0:02:37.1]} 11... Nf5 {[%clk 0:02:39.6]} 12. Nb1 {[%clk 0:02:34.3]} 12...
Nxe3 {[%clk 0:02:39.3]} 13. fxe3 {[%clk 0:02:34.3]} 13... c4 {[%clk 0:02:33.1]}
14. e4 {[%clk 0:02:31.7]} 14... dxe4 {[%clk 0:02:27.5]} 15. Bxe4 {[%clk
0:02:31.1]} 15... O-O-O {[%clk 0:02:24.8]} 16. Qf4 {[%clk 0:02:20.8]} 16... Qc7
{[%clk 0:02:21.4]} 17. Bxc6 {[%clk 0:02:17.8]} 17... Qxc6 {[%clk 0:02:15.5]} 18.
Qxf7 {[%clk 0:02:15.4]} 18... g5 {[%clk 0:02:09.3]} 19. Rhf1 {[%clk 0:02:02.2]}
19... Bh6 {[%clk 0:02:08.9]} 20. Nd2 {[%clk 0:02:00.6]} 20... g4 {[%clk
0:02:08.6]} 21. Rf6 {[%clk 0:01:56.4]} 21... Rde8 {[%clk 0:01:56.9]} 22. Rdf1
{[%clk 0:01:48.4]} 22... Qxg2 {[%clk 0:01:52.2]} 23. R1f2 {[%clk 0:01:36.8]}
23... Qg1+ {[%clk 0:01:44.9]} 24. Rf1 {[%clk 0:01:34.9]} 24... Qe3 {[%clk
0:01:40.7]} 25. R1f2 {[%clk 0:01:29.2]} 25... Rhf8 {[%clk 0:01:33.4]} 26. Qg6
{[%clk 0:01:22.8]} 26... Rxf6 {[%clk 0:01:30.4]} 27. Qxe8+ {[%clk 0:01:22.1]}
27... Kc7 {[%clk 0:01:29.5]} 28. Qe7+ {[%clk 0:01:21.9]} 28... Kc8 {[%clk
0:01:21.4]} 29. Qxf6 {[%clk 0:01:20.8]} 29... Qe1+ {[%clk 0:00:54]} 30. Kc2
{[%clk 0:01:17.3]} 30... Bxd2 {[%clk 0:00:53.1]} 31. Qxe6+ {[%clk 0:01:11.3]}
31... Kc7 {[%clk 0:00:53.1]} 32. Rf7+ {[%clk 0:01:07.9]} 32... Kd8 {[%clk
0:00:53.2]} 33. Qd7# {[%clk 0:01:08.1]} 1-0

[Event "*** SCC Grand Prix: Titled Tuesday Blitz"]
[Site "Chess.com"]
[Date "2020.09.29"]
[Round "9"]
[White "KingHarii"]
[Black "wonderfultime"]
[Result "0-1"]
[WhiteElo "2718"]
[BlackElo "2914"]
[TimeControl "180+1"]
[EndTime "11:42:20 PDT"]
[Termination "wonderfultime won by resignation"]

1. c4 {[%clk 0:02:57.5]} 1... c6 {[%clk 0:02:58.5]} 2. Nf3 {[%clk 0:02:57.5]}
2... d5 {[%clk 0:02:58.8]} 3. e3 {[%clk 0:02:56.9]} 3... Nf6 {[%clk 0:02:59.3]}
4. b3 {[%clk 0:02:56.9]} 4... Bg4 {[%clk 0:02:59.3]} 5. Bb2 {[%clk 0:02:56.7]}
5... e6 {[%clk 0:02:58.9]} 6. Be2 {[%clk 0:02:57]} 6... Nbd7 {[%clk 0:02:59]} 7.
O-O {[%clk 0:02:57.1]} 7... Bd6 {[%clk 0:02:59.2]} 8. d3 {[%clk 0:02:53.7]} 8...
O-O {[%clk 0:02:58.9]} 9. Nbd2 {[%clk 0:02:52.7]} 9... Qe7 {[%clk 0:02:58.9]}
10. a3 {[%clk 0:02:51.4]} 10... a5 {[%clk 0:02:59.1]} 11. Qc2 {[%clk 0:02:50.7]}
11... Rfd8 {[%clk 0:02:55.2]} 12. Rfe1 {[%clk 0:02:50.2]} 12... h6 {[%clk
0:02:52.6]} 13. Nf1 {[%clk 0:02:50.4]} 13... Bf5 {[%clk 0:02:51.7]} 14. N3d2
{[%clk 0:02:21.5]} 14... Bh7 {[%clk 0:02:49.1]} 15. e4 {[%clk 0:02:15.2]} 15...
dxe4 {[%clk 0:02:48.1]} 16. Nxe4 {[%clk 0:02:13.4]} 16... Be5 {[%clk 0:02:39.8]}
17. Nfg3 {[%clk 0:02:06]} 17... Nxe4 {[%clk 0:02:20.4]} 18. Nxe4 {[%clk
0:01:58.9]} 18... Bxb2 {[%clk 0:01:47.8]} 19. Qxb2 {[%clk 0:01:58.2]} 19... Bxe4
{[%clk 0:01:48.5]} 20. dxe4 {[%clk 0:01:59.1]} 20... Nc5 {[%clk 0:01:49.4]} 21.
Bf1 {[%clk 0:01:58.1]} 21... Qg5 {[%clk 0:01:23.3]} 22. b4 {[%clk 0:01:48.5]}
22... Rd2 {[%clk 0:01:10]} 23. Qc3 {[%clk 0:01:48]} 23... axb4 {[%clk
0:00:50.5]} 24. axb4 {[%clk 0:01:48.9]} 24... Rxa1 {[%clk 0:00:51.4]} 25. Qxa1
{[%clk 0:01:41.8]} 25... Nb3 {[%clk 0:00:49.3]} 26. Qa8+ {[%clk 0:01:36.7]}
26... Kh7 {[%clk 0:00:48.7]} 27. Qxb7 {[%clk 0:01:16.2]} 27... Qf4 {[%clk
0:00:47.5]} 28. f3 {[%clk 0:01:15.9]} 28... Nd4 {[%clk 0:00:47.6]} 29. Qa7
{[%clk 0:00:58.1]} 29... Nxf3+ {[%clk 0:00:47.1]} 0-1

[Event "*** SCC Grand Prix: Titled Tuesday Blitz"]
[Site "Chess.com"]
[Date "2020.09.29"]
[Round "9"]
[White "PotapovaM"]
[Black "GHANDEEVAM2003"]
[Result "0-1"]
[WhiteElo "2567"]
[BlackElo "2985"]
[TimeControl "180+1"]
[EndTime "11:42:20 PDT"]
[Termination "GHANDEEVAM2003 won on time"]

1. d4 {[%clk 0:02:58.4]} 1... g6 {[%clk 0:02:56.2]} 2. e4 {[%clk 0:02:58.2]}
2... Bg7 {[%clk 0:02:56.1]} 3. Nc3 {[%clk 0:02:58.9]} 3... b6 {[%clk 0:02:55.8]}
4. Be3 {[%clk 0:02:56.9]} 4... Bb7 {[%clk 0:02:55.9]} 5. h4 {[%clk 0:02:56.7]}
5... h6 {[%clk 0:02:55.8]} 6. f4 {[%clk 0:02:47.3]} 6... h5 {[%clk 0:02:54.2]}
7. e5 {[%clk 0:02:44.6]} 7... Nh6 {[%clk 0:02:51.4]} 8. Nf3 {[%clk 0:02:42.9]}
8... d6 {[%clk 0:02:44.2]} 9. Bd3 {[%clk 0:02:32.8]} 9... Ng4 {[%clk 0:02:40.9]}
10. Qe2 {[%clk 0:02:29.3]} 10... e6 {[%clk 0:02:39.7]} 11. O-O-O {[%clk
0:02:11]} 11... a6 {[%clk 0:02:33.1]} 12. d5 {[%clk 0:01:51.6]} 12... exd5
{[%clk 0:02:23.9]} 13. exd6 {[%clk 0:01:29.5]} 13... O-O {[%clk 0:02:24]} 14.
dxc7 {[%clk 0:01:21.5]} 14... Qxc7 {[%clk 0:02:24.9]} 15. Bd2 {[%clk 0:01:11.7]}
15... Nd7 {[%clk 0:02:20.9]} 16. f5 {[%clk 0:01:06.1]} 16... Rae8 {[%clk
0:02:02.2]} 17. Qf1 {[%clk 0:01:05.5]} 17... Qd6 {[%clk 0:01:55.3]} 18. Ng5
{[%clk 0:01:03.2]} 18... Nc5 {[%clk 0:01:51.3]} 19. Be2 {[%clk 0:00:56.2]} 19...
Ne3 {[%clk 0:01:47.6]} 20. Bxe3 {[%clk 0:00:55.6]} 20... Rxe3 {[%clk 0:01:48.5]}
21. g4 {[%clk 0:00:30.5]} 21... Rxc3 {[%clk 0:01:37.7]} 22. bxc3 {[%clk
0:00:27.9]} 22... Bxc3 {[%clk 0:01:36.3]} 23. Qh3 {[%clk 0:00:13.4]} 23... Ne4
{[%clk 0:01:24.5]} 0-1

[Event "*** SCC Grand Prix: Titled Tuesday Blitz"]
[Site "Chess.com"]
[Date "2020.09.29"]
[Round "9"]
[White "x-0414717230"]
[Black "exoticprincess"]
[Result "0-1"]
[WhiteElo "2714"]
[BlackElo "2895"]
[TimeControl "180+1"]
[EndTime "11:42:27 PDT"]
[Termination "exoticprincess won by resignation"]

1. d4 {[%clk 0:03:00.9]} 1... d5 {[%clk 0:02:56.9]} 2. Nf3 {[%clk 0:03:01.2]}
2... c6 {[%clk 0:02:57.4]} 3. Bf4 {[%clk 0:03:01.2]} 3... Nf6 {[%clk 0:02:57.8]}
4. e3 {[%clk 0:03:01.5]} 4... Bg4 {[%clk 0:02:57.8]} 5. c4 {[%clk 0:03:01.7]}
5... e6 {[%clk 0:02:57.8]} 6. Qb3 {[%clk 0:03:01.5]} 6... Qc8 {[%clk 0:02:57.8]}
7. Ne5 {[%clk 0:03:01.2]} 7... Nbd7 {[%clk 0:02:56.6]} 8. h3 {[%clk 0:02:53.3]}
8... Bf5 {[%clk 0:02:54.9]} 9. Nc3 {[%clk 0:02:53.5]} 9... Nxe5 {[%clk
0:02:52.7]} 10. Bxe5 {[%clk 0:02:49.3]} 10... Be7 {[%clk 0:02:52.7]} 11. Rc1
{[%clk 0:02:45.1]} 11... Qd7 {[%clk 0:02:48.8]} 12. Be2 {[%clk 0:02:27.5]} 12...
O-O {[%clk 0:02:47.9]} 13. O-O {[%clk 0:02:27.8]} 13... h6 {[%clk 0:02:46.2]}
14. Rfd1 {[%clk 0:02:26.5]} 14... a5 {[%clk 0:02:46.1]} 15. c5 {[%clk
0:02:11.4]} 15... Qc8 {[%clk 0:02:38.9]} 16. Na4 {[%clk 0:02:10.4]} 16... Nd7
{[%clk 0:02:38.6]} 17. Bg3 {[%clk 0:02:10.2]} 17... Re8 {[%clk 0:02:36.7]} 18.
Bd3 {[%clk 0:02:09.6]} 18... Bd8 {[%clk 0:02:33.4]} 19. Re1 {[%clk 0:01:51.7]}
19... Bc7 {[%clk 0:02:30.9]} 20. Bxc7 {[%clk 0:01:48.7]} 20... Qxc7 {[%clk
0:02:29.6]} 21. e4 {[%clk 0:01:12.7]} 21... dxe4 {[%clk 0:02:26.4]} 22. Bxe4
{[%clk 0:01:13.6]} 22... Bxe4 {[%clk 0:02:22.2]} 23. Rxe4 {[%clk 0:01:14.5]}
23... Rad8 {[%clk 0:02:21.3]} 24. Qe3 {[%clk 0:01:07.3]} 24... Nf6 {[%clk
0:02:18.9]} 25. Re5 {[%clk 0:01:07.2]} 25... Nd7 {[%clk 0:02:16.7]} 26. Re4
{[%clk 0:01:06.8]} 26... Nf6 {[%clk 0:02:14.7]} 27. Re5 {[%clk 0:01:06.9]} 27...
Nd5 {[%clk 0:02:13.1]} 28. Qf3 {[%clk 0:01:00.2]} 28... Ne7 {[%clk 0:02:11.8]}
29. Re4 {[%clk 0:00:46.1]} 29... Nf5 {[%clk 0:02:09.4]} 30. Qc3 {[%clk
0:00:45.9]} 30... Ne7 {[%clk 0:02:03.1]} 31. Nb6 {[%clk 0:00:43.6]} 31... Nd5
{[%clk 0:01:55.4]} 32. Nxd5 {[%clk 0:00:43.7]} 32... Rxd5 {[%clk 0:01:54.8]} 33.
Rce1 {[%clk 0:00:37.7]} 33... Red8 {[%clk 0:01:54.8]} 34. R1e3 {[%clk
0:00:33.5]} 34... b6 {[%clk 0:01:51.5]} 35. cxb6 {[%clk 0:00:33.3]} 35... Qxb6
{[%clk 0:01:51.3]} 36. b3 {[%clk 0:00:30]} 36... Rxd4 {[%clk 0:01:49]} 37. Rxd4
{[%clk 0:00:29.6]} 37... Rxd4 {[%clk 0:01:49.9]} 38. Re5 {[%clk 0:00:20]} 38...
Rd1+ {[%clk 0:01:47.3]} 39. Kh2 {[%clk 0:00:19.9]} 39... Qxf2 {[%clk 0:01:45.2]}
40. Rxa5 {[%clk 0:00:15.6]} 40... Qf4+ {[%clk 0:01:41.4]} 0-1

[Event "*** SCC Grand Prix: Titled Tuesday Blitz"]
[Site "Chess.com"]
[Date "2020.09.29"]
[Round "9"]
[White "Kumi29"]
[Black "FMJoseHerrera"]
[Result "0-1"]
[WhiteElo "2415"]
[BlackElo "2558"]
[TimeControl "180+1"]
[EndTime "11:42:29 PDT"]
[Termination "FMJoseHerrera won by resignation"]

1. d4 {[%clk 0:03:00.9]} 1... Nf6 {[%clk 0:02:59.6]} 2. Bg5 {[%clk 0:03:01]}
2... Ne4 {[%clk 0:02:59.5]} 3. h4 {[%clk 0:03:00.2]} 3... c5 {[%clk 0:02:59.2]}
4. d5 {[%clk 0:03:00.1]} 4... d6 {[%clk 0:02:58.2]} 5. Qd3 {[%clk 0:02:58.6]}
5... Nxg5 {[%clk 0:02:55]} 6. hxg5 {[%clk 0:02:59.5]} 6... g6 {[%clk 0:02:55.3]}
7. Qc3 {[%clk 0:02:58.3]} 7... f6 {[%clk 0:02:52]} 8. e3 {[%clk 0:02:47.1]} 8...
Bg7 {[%clk 0:02:50]} 9. Bd3 {[%clk 0:02:47.4]} 9... O-O {[%clk 0:02:44.8]} 10.
gxf6 {[%clk 0:02:08.5]} 10... exf6 {[%clk 0:02:40.2]} 11. Qc4 {[%clk 0:02:01.3]}
11... f5 {[%clk 0:02:38.3]} 12. Nc3 {[%clk 0:01:59.2]} 12... Nd7 {[%clk
0:02:34.3]} 13. Nf3 {[%clk 0:01:56.3]} 13... a6 {[%clk 0:02:27.4]} 14. Qf4
{[%clk 0:01:55.7]} 14... Ne5 {[%clk 0:02:25.6]} 15. Qh2 {[%clk 0:01:55]} 15...
h6 {[%clk 0:02:18.1]} 16. O-O-O {[%clk 0:01:53.9]} 16... b5 {[%clk 0:02:16]} 17.
Nh4 {[%clk 0:01:23.9]} 17... Qf6 {[%clk 0:02:10.6]} 18. Be2 {[%clk 0:01:20]}
18... b4 {[%clk 0:02:06.2]} 19. Na4 {[%clk 0:01:14.8]} 19... Bd7 {[%clk
0:02:05.8]} 20. Nb6 {[%clk 0:01:15.2]} 20... Rab8 {[%clk 0:01:49.6]} 21. Nxd7
{[%clk 0:01:15]} 21... Nxd7 {[%clk 0:01:50.5]} 22. Nxg6 {[%clk 0:01:05.4]} 22...
Qxg6 {[%clk 0:01:39]} 23. g4 {[%clk 0:00:56.1]} 23... Qf6 {[%clk 0:01:38.7]} 24.
Kd2 {[%clk 0:00:51.9]} 24... f4 {[%clk 0:01:33.4]} 25. g5 {[%clk 0:00:45.4]}
25... fxe3+ {[%clk 0:01:32.5]} 26. fxe3 {[%clk 0:00:43.5]} 26... Qxb2 {[%clk
0:01:32.6]} 27. gxh6 {[%clk 0:00:38.3]} 27... Qc3+ {[%clk 0:01:09.5]} 28. Kc1
{[%clk 0:00:38.2]} 28... Qa3+ {[%clk 0:01:09.7]} 29. Kd2 {[%clk 0:00:36.4]}
29... Bc3+ {[%clk 0:01:09.9]} 30. Kd3 {[%clk 0:00:36.4]} 30... Be5+ {[%clk
0:01:10.6]} 31. Ke4 {[%clk 0:00:32.6]} 31... Bxh2 {[%clk 0:01:10.6]} 32. h7+
{[%clk 0:00:32.2]} 32... Kh8 {[%clk 0:01:10.4]} 0-1

[Event "*** SCC Grand Prix: Titled Tuesday Blitz"]
[Site "Chess.com"]
[Date "2020.09.29"]
[Round "9"]
[White "alexgo05"]
[Black "Mbneu"]
[Result "1-0"]
[WhiteElo "2434"]
[BlackElo "2311"]
[TimeControl "180+1"]
[EndTime "11:42:29 PDT"]
[Termination "alexgo05 won by resignation"]

1. e4 {[%clk 0:03:00.9]} 1... c5 {[%clk 0:02:59.7]} 2. Nf3 {[%clk 0:03:00.7]}
2... Nf6 {[%clk 0:02:59.5]} 3. e5 {[%clk 0:02:59.3]} 3... Nd5 {[%clk 0:02:59.4]}
4. Nc3 {[%clk 0:02:59.9]} 4... Nxc3 {[%clk 0:02:58.3]} 5. dxc3 {[%clk
0:03:00.8]} 5... Nc6 {[%clk 0:02:58.2]} 6. Bf4 {[%clk 0:03:00.4]} 6... Qc7
{[%clk 0:02:58.3]} 7. Qd2 {[%clk 0:02:49.4]} 7... e6 {[%clk 0:02:57.8]} 8. O-O-O
{[%clk 0:02:49]} 8... h6 {[%clk 0:02:55.8]} 9. h4 {[%clk 0:02:49.2]} 9... a6
{[%clk 0:02:55.3]} 10. c4 {[%clk 0:02:48.1]} 10... b5 {[%clk 0:02:50.1]} 11. Kb1
{[%clk 0:02:45.9]} 11... Qb6 {[%clk 0:02:17.4]} 12. g4 {[%clk 0:02:15.5]} 12...
Rb8 {[%clk 0:02:00.7]} 13. b3 {[%clk 0:02:12.8]} 13... Na5 {[%clk 0:01:45.6]}
14. cxb5 {[%clk 0:02:05.7]} 14... axb5 {[%clk 0:01:43.2]} 15. g5 {[%clk
0:02:06]} 15... c4 {[%clk 0:01:32]} 16. b4 {[%clk 0:01:48.4]} 16... Nc6 {[%clk
0:01:08]} 17. c3 {[%clk 0:01:48.4]} 17... Ne7 {[%clk 0:01:00.2]} 18. Nd4 {[%clk
0:01:37.4]} 18... Nd5 {[%clk 0:00:55.2]} 19. Bg2 {[%clk 0:01:37]} 19... Bb7
{[%clk 0:00:54.4]} 20. Nf5 {[%clk 0:01:29.5]} 20... Nxc3+ {[%clk 0:00:42.3]} 21.
Qxc3 {[%clk 0:01:25.5]} 21... Bxg2 {[%clk 0:00:41.5]} 22. Nd6+ {[%clk
0:01:21.6]} 22... Bxd6 {[%clk 0:00:40]} 23. exd6 {[%clk 0:01:22.5]} 23... Qxf2
{[%clk 0:00:31.2]} 24. Qxg7 {[%clk 0:01:14.3]} 24... Be4+ {[%clk 0:00:16.2]} 25.
Ka1 {[%clk 0:01:14.4]} 25... Rf8 {[%clk 0:00:06.8]} 26. Qf6 {[%clk 0:01:14.4]}
1-0

[Event "*** SCC Grand Prix: Titled Tuesday Blitz"]
[Site "Chess.com"]
[Date "2020.09.29"]
[Round "9"]
[White "Mikhail_Golubev"]
[Black "NikolaGry"]
[Result "1-0"]
[WhiteElo "2481"]
[BlackElo "2632"]
[TimeControl "180+1"]
[EndTime "11:42:38 PDT"]
[Termination "Mikhail_Golubev won by resignation"]

1. e4 {[%clk 0:03:00.9]} 1... e5 {[%clk 0:02:59.6]} 2. Nf3 {[%clk 0:03:00]} 2...
d6 {[%clk 0:03:00]} 3. d4 {[%clk 0:02:59.2]} 3... exd4 {[%clk 0:03:00.3]} 4.
Qxd4 {[%clk 0:02:59.3]} 4... Nc6 {[%clk 0:02:59.6]} 5. Bb5 {[%clk 0:02:57.5]}
5... Ne7 {[%clk 0:02:59.6]} 6. Bf4 {[%clk 0:02:47.3]} 6... a6 {[%clk 0:02:55.9]}
7. Bxc6+ {[%clk 0:02:46.9]} 7... Nxc6 {[%clk 0:02:56]} 8. Qd2 {[%clk 0:02:46.8]}
8... Be7 {[%clk 0:02:46.6]} 9. Nc3 {[%clk 0:02:46.5]} 9... O-O {[%clk
0:02:46.7]} 10. O-O-O {[%clk 0:02:46.3]} 10... Be6 {[%clk 0:02:44.6]} 11. h3
{[%clk 0:02:38]} 11... Na5 {[%clk 0:02:25.5]} 12. Nd5 {[%clk 0:02:28]} 12... Nc4
{[%clk 0:02:21.8]} 13. Qd3 {[%clk 0:02:20.2]} 13... b5 {[%clk 0:02:16.5]} 14.
Nxe7+ {[%clk 0:02:15.6]} 14... Qxe7 {[%clk 0:02:15.6]} 15. Nd4 {[%clk
0:02:15.5]} 15... Qf6 {[%clk 0:02:03.7]} 16. Qg3 {[%clk 0:01:52.9]} 16... h6
{[%clk 0:01:45]} 17. b3 {[%clk 0:01:44.7]} 17... Ne5 {[%clk 0:01:02]} 18. Bxe5
{[%clk 0:01:38.4]} 18... dxe5 {[%clk 0:01:00]} 19. Nf3 {[%clk 0:01:37.8]} 19...
Qf4+ {[%clk 0:00:49.8]} 20. Qxf4 {[%clk 0:01:36.9]} 20... exf4 {[%clk 0:00:50]}
21. Nd4 {[%clk 0:01:33.1]} 21... Bc8 {[%clk 0:00:42.7]} 22. Ne2 {[%clk
0:01:19.7]} 22... Re8 {[%clk 0:00:37.4]} 23. Nxf4 {[%clk 0:01:03.1]} 23... Rxe4
{[%clk 0:00:35.9]} 24. Rd8+ {[%clk 0:01:02.8]} 24... Kh7 {[%clk 0:00:35.7]} 25.
Nd3 {[%clk 0:01:02.2]} 25... Re7 {[%clk 0:00:22.8]} 26. Nc5 {[%clk 0:00:56.9]}
26... Bb7 {[%clk 0:00:21.9]} 27. Nxb7 {[%clk 0:00:56]} 1-0

[Event "*** SCC Grand Prix: Titled Tuesday Blitz"]
[Site "Chess.com"]
[Date "2020.09.29"]
[Round "9"]
[White "daro94"]
[Black "GameOverBro"]
[Result "1-0"]
[WhiteElo "2919"]
[BlackElo "2555"]
[TimeControl "180+1"]
[EndTime "11:42:40 PDT"]
[Termination "daro94 won by resignation"]

1. g3 {[%clk 0:03:00.9]} 1... d6 {[%clk 0:02:57]} 2. Bg2 {[%clk 0:03:01.4]} 2...
Nf6 {[%clk 0:02:57.8]} 3. b3 {[%clk 0:03:00.5]} 3... Nbd7 {[%clk 0:02:57.8]} 4.
Bb2 {[%clk 0:03:01.1]} 4... e5 {[%clk 0:02:58.3]} 5. d4 {[%clk 0:03:01]} 5... c6
{[%clk 0:02:58.6]} 6. Nf3 {[%clk 0:02:57.3]} 6... Qc7 {[%clk 0:02:57.9]} 7. O-O
{[%clk 0:02:57.2]} 7... Be7 {[%clk 0:02:57.3]} 8. c4 {[%clk 0:02:55.8]} 8... O-O
{[%clk 0:02:56.8]} 9. Nc3 {[%clk 0:02:56.3]} 9... Re8 {[%clk 0:02:54.6]} 10. d5
{[%clk 0:02:55.8]} 10... a6 {[%clk 0:02:37.2]} 11. Rc1 {[%clk 0:02:55.2]} 11...
Nf8 {[%clk 0:02:32.8]} 12. Ne1 {[%clk 0:02:50.8]} 12... Ng6 {[%clk 0:02:31.4]}
13. e4 {[%clk 0:02:50.7]} 13... Rf8 {[%clk 0:02:27.1]} 14. Nd3 {[%clk
0:02:50.6]} 14... c5 {[%clk 0:02:27]} 15. Qe2 {[%clk 0:02:40.7]} 15... Bg4
{[%clk 0:02:24.4]} 16. f3 {[%clk 0:02:40.8]} 16... Bd7 {[%clk 0:02:24.9]} 17. f4
{[%clk 0:02:35.2]} 17... exf4 {[%clk 0:02:08.5]} 18. gxf4 {[%clk 0:02:36.1]}
18... Rae8 {[%clk 0:02:02.8]} 19. Rce1 {[%clk 0:02:30.3]} 19... Ng4 {[%clk
0:01:45.7]} 20. h3 {[%clk 0:02:21.4]} 20... Nh6 {[%clk 0:01:44.1]} 21. f5 {[%clk
0:01:26.5]} 21... Nh4 {[%clk 0:01:37.8]} 22. f6 {[%clk 0:01:12.5]} 22... Bxf6
{[%clk 0:01:24.7]} 23. Rxf6 {[%clk 0:01:12.6]} 23... gxf6 {[%clk 0:01:25.3]} 24.
Qh5 {[%clk 0:01:05.9]} 24... N6f5 {[%clk 0:01:05.9]} 25. exf5 {[%clk 0:00:59.9]}
25... Rxe1+ {[%clk 0:01:03.8]} 26. Nxe1 {[%clk 0:01:00.8]} 26... Nxf5 {[%clk
0:00:51.5]} 27. Ne4 {[%clk 0:00:58.7]} 27... Nd4 {[%clk 0:00:50.1]} 28. Nxf6+
{[%clk 0:00:46.3]} 28... Kg7 {[%clk 0:00:50.5]} 29. Qg5+ {[%clk 0:00:45.6]}
29... Kh8 {[%clk 0:00:49.1]} 30. Qh6 {[%clk 0:00:46.5]} 1-0